Cogmind - Beta 13 *** ADVENTURER MODE // 2024.04.02 @ 14:51:02 Player: J-mop Result: Destroyed by Y-54 Guardian with Flak Gun Performance ------------- Evolutions (3) 1500 Regions Visited (5) 1000 Robots Destroyed (123) 615 Value Destroyed (3808) 3808 Prototype IDs (16) 320 Alien Tech Used (0) 0 Bonus (-919) -919 TOTAL SCORE: 6324 Bonus ------- Follower Combat Kills 246 Friendly Fire -1165 Cogmind --------- Core Integrity 0/700 Matter 105/300 Energy 100/100 System Corruption 10% Temperature Cool (18) Movement Core (50) Location -7/Storage Parts ------- > --- POWER (3) -------- (None) > --- PROPULSION (3) --- (None) > --- UTILITY (5) ------ Hacking Suite > --- WEAPON (2) ------- Spear > --- INVENTORY (5) ---- Mini Assault Cannon Datajack Peak State ------------ > --- POWER ------------ Cooled Ion Engine Heavy Deuterium Engine Enhanced Nuclear Core > --- PROPULSION ------- Improved Cesium-ion Thruster Improved Cesium-ion Thruster Cooled VTOL Module > --- UTILITY ---------- Structural Scanner Advanced Visual Processing Unit Improved Targeting Computer Hacking Suite Hacking Suite > --- WEAPON ----------- Rocket Array Heavy Hammer > --- INVENTORY -------- Cold Fusion Reactor Improved Flight Unit Datajack [Rating: 48] Favorites ----------- Power Improved Ion Engine Engine Improved Ion Engine Power Core Enhanced Nuclear Core Reactor Cold Fusion Reactor Propulsion Light Treads Treads Light Treads Wheel Wheel Flight Unit Improved Cesium-ion Thruster Utility Hacking Suite Device Structural Scanner Storage Huge Storage Unit Processor Improved Targeting Computer Hackware Hacking Suite Protection Light Armor Plating Weapon Autogun Energy Gun Small Laser Ballistic Gun Autogun Ballistic Cannon Light Cannon Launcher Rocket Array Impact Weapon Heavy Hammer Piercing Weapon Spear Special Melee Weapon Datajack Build | -11 -10 -9 -8 -7 -7 ------- Run | Yrd Mat Mat Mat Fac Sto Slots Evolved 6 | . . 2 2 2 . Power 2 | . . 1 . 1 . Propulsion 1 | . . . 1 . . Utility 3 | . . 1 1 1 . Weapon . | . . . . . . Parts Attached 120 | 6 8 26 53 10 17 Power 18 | 1 1 1 8 1 6 Engine 16 | 1 1 1 8 1 4 Core 1 | . . . . . 1 Reactor 1 | . . . . . 1 Propulsion 31 | 3 1 3 16 3 5 Treads 19 | . . 3 16 . . Leg . | . . . . . . Wheel 4 | 3 1 . . . . Hover . | . . . . . . Flight 8 | . . . . 3 5 Utility 43 | . 5 16 18 3 1 Device 17 | . 1 7 9 . . Storage 2 | . 2 . . . . Processor 3 | . . 1 . 1 1 Hackware 6 | . . 3 1 2 . Protection 15 | . 2 5 8 . . Artifact . | . . . . . . Weapon 28 | 2 1 6 11 3 5 Energy Gun 1 | 1 . . . . . Energy Cannon . | . . . . . . Ballistic Gun 13 | 1 . 5 7 . . Ballistic Cannon 4 | . 1 1 . . 2 Launcher 4 | . . . . 2 2 Special Weapon . | . . . . . . Impact Weapon 4 | . . . 3 1 . Slashing Weapon . | . . . . . . Piercing Weapon 1 | . . . . . 1 Special Melee Weapon 1 | . . . 1 . . Unidentified Prototypes 10 | . . . . . 10 Parts Lost 25 | . . 1 6 6 12 Power 6 | . . . 1 1 4 Propulsion 9 | . . . 4 3 2 Utility 7 | . . 1 1 1 4 Weapon 3 | . . . . 1 2 Highest Loss Streak 6 | . . 1 1 5 6 To Critical Strikes . | . . . . . . Average Slot Usage (%) 93 | . 99 99 97 64 69 Engine 16 | . 14 22 17 6 7 Treads 18 | . . 20 25 4 . Wheel 2 | . 28 1 . . . Flight 1 | . . . . 5 8 Device 6 | . . 9 6 7 6 Storage 8 | . 12 11 9 1 . Processor 2 | . . 1 . 7 14 Hackware 7 | . . 2 8 13 14 Protection 8 | . 13 7 10 1 . Ballistic Gun 14 | . 14 19 16 3 . Ballistic Cannon 1 | . 13 2 . . . Impact Weapon 1 | . . . 1 5 6 Naked Turns . | . . . . . . Heaviest Build 113 | 6 95 106 106 113 38 Greatest Support 69 | 20 20 40 69 68 17 Greatest Overweight (x) 6 | . 4 5 4 3 6 Average Overweight (x) 1 | . 3 2 1 1 2 Largest Inventory Capacity 25 | 5 25 25 25 25 5 Average Capacity 21 | 5 22 25 25 9 5 Most Carried 25 | 5 22 25 25 23 5 Average Carried 18 | 2 13 22 23 5 1 Final Capacity 25 | 5 25 25 25 5 5 Final Carried 24 | 4 18 24 24 1 2 Class Distribution -------------------- 66% | Hacker-Mutant 28% | Mutant 4% | Scavenger-Mutant Dominant Class ---------------- Mutant | -10/Materials Mutant | -9/Materials Hacker-Mutant | -8/Materials Hacker-Mutant | -7/Factory Hacker-Mutant | -7/Storage Resources | -11 -10 -9 -8 -7 -7 ----------- Run | Yrd Mat Mat Mat Fac Sto Matter Collected 3789 | 284 200 1001 1726 110 468 Remotely . | . . . . . . Salvage Created 4431 | 77 192 925 2241 302 694 Parts 266 | 5 24 68 135 9 25 Haulers Intercepted 1 | . . 1 . . . Recyclers Shooed 3 | . . . 3 . . Parts Field Recycled . | . . . . . . Retrieved Matter . | . . . . . . Parts Self-Destructed . | . . . . . . Prevented . | . . . . . . Kills | -11 -10 -9 -8 -7 -7 ------- Run | Yrd Mat Mat Mat Fac Sto Combat Hostiles Destroyed 90 | 1 8 19 46 7 9 Guns 65 | 1 4 14 46 . . Cannons 12 | . 4 5 . . 3 AOE 13 | . . . . 7 6 Classes Destroyed 13 | 2 3 3 3 2 . Worker 3 | . . . 1 . 2 Builder 5 | . 1 . 2 . 2 Tunneler 6 | 2 . 2 2 . . Hauler 1 | . . 1 . . . Recycler 6 | . . . 3 1 2 Operator 3 | . . 2 . . 1 Watcher 14 | . 3 5 5 . 1 Swarmer 15 | . 6 3 6 . . Grunt 55 | 1 2 12 28 5 7 Brawler 2 | . . . . 1 1 Sentry 14 | . . 4 10 . . Hunter 2 | . . . 2 . . Programmer 2 | . . . . 1 1 Best Kill Streak 8 | 3 3 4 6 4 8 Combat Bots Only 5 | 1 3 3 5 4 4 Max Kills in Single Turn 3 | 1 2 1 2 2 3 Gunslinging 1 | . . . 1 . . Exploded 2 | . . . . 2 2 Melee . | . . . . . . Uniques/NPCs Destroyed 1 | . . . . . 1 01-MTF (-7/Storage) Combat | -11 -10 -9 -8 -7 -7 -------- Run | Yrd Mat Mat Mat Fac Sto Hostile Shots Fired 744 | 2 37 91 294 40 280 Missed 257 | 1 13 24 79 11 129 Damage Taken 5294 | 8 187 618 2484 448 1549 Core 1061 | . 8 76 276 115 586 Absorbed by Shields . | . . . . . . Redirected to Shielding 101 | . . . 101 . . Ignored by Resistances 1537 | 2 58 186 720 131 440 Regen/Repaired (Parts) 490 | . . . 490 . . Core Remaining (%) 81 | 100 96 81 49 . . Volleys Fired 322 | 8 22 74 171 19 28 Largest 2 | 2 2 2 2 1 1 Hottest 60 | 60 55 55 48 39 48 Shots Fired 583 | 13 44 148 328 19 31 Gun 481 | 13 22 118 328 . . Cannon 72 | . 22 30 . . 20 Launcher 30 | . . . . 19 11 Special . | . . . . . . Kinetic 548 | 8 44 148 328 . 20 Thermal 5 | 5 . . . . . Explosive 21 | . . . . 10 11 Electromagnetic 9 | . . . . 9 . Robot Hit Streak 34 | 9 17 23 34 14 14 Robot Miss Streak 6 | 1 3 3 6 1 2 Penetration Max . | . . . . . . Secondary Targets 8 | . . 4 4 . . Max Gunslinging Chain 1 | . . 1 1 . . Shots Hit Robots 452 | 10 27 105 267 17 26 Core Hits 246 | 4 15 42 121 13 51 Critical Kills 3 | . . 1 2 . . Critical Parts Destroyed 5 | 1 . 1 3 . . Critical Strikes 11 | 1 1 2 5 . 2 Destroy 8 | 1 . 2 5 . . Blast 3 | . 1 . . . 2 Melee Attacks 34 | . . . 19 . 15 Impact 23 | . . . 19 . 4 Slashing . | . . . . . . Piercing 11 | . . . . . 11 Sneak Attacks 1 | . . . 1 . . Combat Hostiles . | . . . . . . Follow-up Attacks . | . . . . . . Damage Inflicted 9695 | 122 422 1614 4829 726 1982 Guns 6215 | 122 144 1282 4667 . . Cannons 1129 | . 278 318 . . 533 Explosions 2175 | . . . . 726 1449 Melee 110 | . . . 110 . . Ramming 66 | . . 14 52 . . Kinetic 7290 | 68 422 1600 4667 . 533 Thermal 54 | 54 . . . . . Explosive 2066 | . . . . 617 1449 Electromagnetic 109 | . . . . 109 . Impact 110 | . . . 110 . . Slashing . | . . . . . . Piercing . | . . . . . . Highest Corruption 10 | . . . . 5 10 Average Corruption 5 | . . . . 4 5 Corruption Purged . | . . . . . . Corruption Blocked . | . . . . . . Effects 40 | . . . . 14 26 Message Errors 8 | . . . . 4 4 Matter Fused 6 | . . . . 3 3 Heat Flow Errors 4 | . . . . 2 2 Energy Discharges 5 | . . . . 2 3 Parts Rejected 1 | . . . . . 1 Parts Fused 1 | . . . . . 1 Data Loss (minor) 7 | . . . . 2 5 Data Loss (major) 3 | . . . . 1 2 Misfires 3 | . . . . . 3 Alerts 2 | . . . . . 2 Overload Shots . | . . . . . . Overflow Damage 163 | . . . 50 24 89 Projectiles 33 | . . . . . 33 Explosions 80 | . . . . 24 56 Melee 50 | . . . 50 . . Knockbacks 14 | . 4 1 1 . 8 Impact 1 | . . . 1 . . Kinetic 10 | . 3 1 . . 6 Secondary 3 | . 1 . . . 2 Self-Inflicted Damage 387 | . . . . 114 273 Shots 21 | . . . . 6 15 Rammed 9 | . . 2 6 . 1 Targets Rammed 12 | . . 3 8 . 1 Kicked . | . . . . . . Crushed 3 | . . 1 2 . . Highest Temperature 240 | 6 111 183 213 240 238 Average Temperature 48 | 6 27 42 52 104 54 Received Heat Transfer 2331 | 6 87 330 1359 72 477 Effects 1 | . . . . . 1 Interference 1 | . . . . . 1 Siege Activations . | . . . . . . Robots Corrupted . | . . . . . . Combat Hostiles . | . . . . . . Parts Fried 2 | . . . 2 . . Impact Corruptions 4 | . . . 4 . . Robots Melted . | . . . . . . Combat Hostiles . | . . . . . . Parts Melted . | . . . . . . Heat Transferred 125 | 125 . . . . . Parts Sabotaged . | . . . . . . Parts Stolen . | . . . . . . Parts Stripped . | . . . . . . Power Chain Reactions 1 | . . . . 1 . Alert | -11 -10 -9 -8 -7 -7 ------- Run | Yrd Mat Mat Mat Fac Sto Peak Influence 350 | 30 172 202 350 215 327 Initial 25 | . 16 25 . 1 5 Average 62 | 10 46 42 60 58 165 Maximum Alert Level 1 | . . 1 1 1 1 Low Security (%) 89 | 100 100 98 91 80 50 Level 1 10 | . . 1 8 19 49 Level 2 . | . . . . . . Level 3 . | . . . . . . Level 4 . | . . . . . . Level 5 . | . . . . . . High Security . | . . . . . . Max Security . | . . . . . . Squads Dispatched 25 | . 1 3 12 2 7 Investigation 12 | . 1 3 7 1 . Extermination 2 | . . . . 1 1 Reinforcement 7 | . . . 3 . 4 Assault . | . . . . . . Garrison 4 | . . . 2 . 2 Intercept . | . . . . . . Searches Triggered . | . . . . . . Construction Impeded 3 | . . . . . 3 Haulers Reinforced . | . . . . . . Active Scanning Responses . | . . . . . . Cargo Convoy Interrupts . | . . . . . . Stealth | -11 -10 -9 -8 -7 -7 --------- Run | Yrd Mat Mat Mat Fac Sto Distress Signals 8 | . 1 2 4 . 1 Communications Jammed . | . . . . . . Distress Signals . | . . . . . . Times Spotted 138 | 1 12 30 64 6 25 Peak Tracking Total 8 | 1 3 5 5 4 8 Tactical Retreats 8 | . 2 2 3 . 1 Traps | -11 -10 -9 -8 -7 -7 ------- Run | Yrd Mat Mat Mat Fac Sto Traps Triggered 10 | . 1 3 6 . . Indirectly . | . . . . . . Trap Hack Attempts . | . . . . . . Triggered . | . . . . . . Disarmed 4 | . . 4 . . . Reprogrammed . | . . . . . . Reused . | . . . . . . Traps Extracted . | . . . . . . Installed . | . . . . . . Triggered . | . . . . . . Machines | -11 -10 -9 -8 -7 -7 ---------- Run | Yrd Mat Mat Mat Fac Sto Machines Disabled 12 | . . . 1 2 9 Max in Single Turn 2 | . . . 1 1 2 Garrison Access 1 | . . . 1 . . Machines Repaired . | . . . . . . Machines Dismantled . | . . . . . . Machines Sabotaged . | . . . . . . Overloaded Fab Kills . | . . . . . . Hacking | -11 -10 -9 -8 -7 -7 --------- Run | Yrd Mat Mat Mat Fac Sto Machines Accessed 36 | . 8 9 11 3 5 Terminals 28 | . 6 9 6 2 5 Fabricators 1 | . . . . 1 . Repair Stations 3 | . 1 . 2 . . Recycling Units 1 | . 1 . . . . Scanalyzers 2 | . . . 2 . . Garrison Access 1 | . . . 1 . . Total Hacks 104 | . 23 22 48 4 7 Successful 77 | . 12 14 43 3 5 Failed 27 | . 11 8 5 1 2 Catastrophic 1 | . . 1 . . . Database Lockouts . | . . . . . . Manual 6 | . . 3 3 . . Terminals 68 | . 19 22 18 2 7 Fabricators 2 | . . . . 2 . Repair Stations 17 | . 2 . 15 . . Recycling Units 2 | . 2 . . . . Scanalyzers 13 | . . . 13 . . Garrison Access 2 | . . . 2 . . Terminal Hacks 45 | . 11 14 14 1 5 Record 8 | . . 3 5 . . Prototype ID Bank 4 | . 1 2 . . 1 Open Door 4 | . . . . . 4 Open DSF 1 | . . . . 1 . Emergency Access Points 1 | . . . 1 . . Alert Level 3 | . 2 1 . . . Unreport Threat 2 | . . 1 1 . . Locate Traps 2 | . 1 . 1 . . Disarm Traps 1 | . . 1 . . . Dispatch Records 1 | . . . 1 . . Maintenance Status 1 | . 1 . . . . Surveillance Status 1 | . . 1 . . . Patrol Status 1 | . . . 1 . . Reinforcement Status 2 | . 2 . . . . Assault Status 1 | . . 1 . . . Recall Investigation 1 | . . . 1 . . Hauler Manifests 3 | . 1 2 . . . Registered Components 1 | . 1 . . . . Registered Prototypes 1 | . . 1 . . . Zone Layout 6 | . 2 1 3 . . Fabricator Hacks 2 | . . . . 2 . Load Schematic 1 | . . . . 1 . Build 1 | . . . . 1 . Repair Station Hacks 14 | . . . 14 . . Scan Component 7 | . . . 7 . . Repair 7 | . . . 7 . . Recycling Unit Hacks 1 | . 1 . . . . Retrieve Components 1 | . 1 . . . . Scanalyzer 13 | . . . 13 . . Insert Component 7 | . . . 7 . . Analyze 6 | . . . 6 . . Garrison Access Hacks 2 | . . . 2 . . Unlock Access 1 | . . . 1 . . Seal Access 1 | . . . 1 . . Unauthorized Hacks . | . . . . . . Terminals . | . . . . . . Fabricators . | . . . . . . Repair Stations . | . . . . . . Recycling Units . | . . . . . . Scanalyzers . | . . . . . . Garrison Access . | . . . . . . Data Cores Recovered . | . . . . . . Used . | . . . . . . Hacking Detections 23 | . 2 6 11 3 1 Full Trace Events 9 | . . 2 6 1 . Feedback Events . | . . . . . . Feedback Blocked . | . . . . . . Robot Schematics Acquired . | . . . . . . Robots Built . | . . . . . . Authchips . | . . . . . . Time . | . . . . . . Total Robot Build Rating . | . . . . . . Part Schematics Acquired 5 | . . . 5 . . Parts Built . | . . . . . . Authchips . | . . . . . . Time 99 | . . . . 99 . Total Part Build Rating . | . . . . . . Parts Repaired 7 | . . . 7 . . Time 218 | . . . 218 . . Parts Recycled . | . . . . . . Recycled Matter . | . . . . . . Retrieved Matter . | . . . . . . Retrieved Components . | . . . . . . Parts Scanalyzed 5 | . . . 5 . . Part Schematics Acquired 5 | . . . 5 . . Parts Damaged . | . . . . . . Bothacking | -11 -10 -9 -8 -7 -7 ------------ Run | Yrd Mat Mat Mat Fac Sto Used RIF Installer . | . . . . . . Robots Hacked . | . . . . . . Non-combat . | . . . . . . Combat . | . . . . . . Robot Hacks Applied . | . . . . . . Relay Couplers Released . | . . . . . . Fabnet Peak Effective % . | . . . . . . Robots Rewired . | . . . . . . Allies Hacked . | . . . . . . Hacks Repelled . | . . . . . . Allies | -11 -10 -9 -8 -7 -7 -------- Run | Yrd Mat Mat Mat Fac Sto Total Allies 1 | . . . . . 1 Largest Group 1 | . . . . . 1 Highest-Rated Group 100 | . . . . . 100 Highest-Rated Ally 100 | . . . . . 100 Total Orders . | . . . . . . Ally Attacks 23 | . . . . . 23 Total Damage 691 | . . . . . 691 Kills 8 | . . . . . 8 Allies Corrupted . | . . . . . . Allies Melted . | . . . . . . Intel | -11 -10 -9 -8 -7 -7 ------- Run | Yrd Mat Mat Mat Fac Sto Robot Analysis Total . | . . . . . . Derelict Logs Recovered . | . . . . . . Drone Launches . | . . . . . . Drone Recoveries . | . . . . . . Exploration | -11 -10 -9 -8 -7 -7 ------------- Run | Yrd Mat Mat Mat Fac Sto Turns Passed 12017 | 100 1067 2981 5893 983 993 Spaces Moved 4583 | 81 753 891 1890 506 462 Core 428 | 17 . . . 189 222 Treads 2741 | . . 770 1890 81 . Legs . | . . . . . . Wheels 938 | 64 753 121 . . . Hover . | . . . . . . Flight 476 | . . . . 236 240 Fastest Speed 29 | 50 80 140 235 40 29 Average Speed 219 | 73 127 296 247 181 170 Slowest Speed 480 | 80 140 320 480 235 350 Overloaded Moves . | . . . . . . Propulsion Burnouts . | . . . . . . Robots Hopped 1 | . . . . . 1 Cave-ins Triggered 2 | . . . . . 2 Exploration Rate (%) 55 | 6 85 65 93 6 75 Regions Visited 5 Branch Regions 1 Pre-discovered Areas . | . . . . . . Known Exits Taken . | . . . . . . Unknown Exits Taken 5 | 1 1 1 1 1 . Scrap Searched . | . . . . . . Spaces Dug 22 | . . . 15 . 7 Terrain Destroyed 292 | . . . 15 66 211 Melee 22 | . . . 15 . 7 Projectile 2 | . . . . . 2 AOE 268 | . . . . 66 202 Terrain Rammed . | . . . . . . Walls Destroyed . | . . . . . . Machines Disabled . | . . . . . . Actions | -11 -10 -9 -8 -7 -7 --------- Run | Yrd Mat Mat Mat Fac Sto Total 5968 | 110 821 1102 2771 560 604 Wait 674 | . 1 53 552 6 62 Move 4575 | 80 752 890 1889 505 459 Hop 1 | . . . . . 1 Pick Up 131 | 12 28 28 44 5 14 Fast Attach . | . . . . . . Attach 94 | 6 8 24 35 10 11 Detach 36 | 1 3 16 11 3 2 Swap 26 | . . 2 18 . 6 Drop 62 | 3 7 12 24 12 4 Fire 322 | 8 22 74 171 19 28 Melee 34 | . . . 19 . 15 Ram 1 | . . . . . 1 Kick . | . . . . . . Crush 11 | . . 3 8 . . Escape Stasis 1 | . . . . . 1 Rewire . | . . . . . . Trap . | . . . . . . Miscellaneous . | . . . . . . Route ------- -11/Scrapyard -10/Materials (discovered 3 exits: *Mat x2 / [*Min]) -9/Materials (discovered 2 exits: *Mat / [*Min]) -8/Materials (discovered 3 exits: *Fac x3) -7/Factory -7/Storage History --------- Turn | Location | Event 2 | -11/Scrapyard | Met Revision 17 51 | -11/Scrapyard | Discovered new exit (range 8) 101 | -11/Scrapyard | Entered Materials 305 | -10/Materials | Build established: Mutant 506 | -10/Materials | Discovered new exit (range 12) 689 | -10/Materials | Discovered new exit (range 12) 1055 | -10/Materials | Discovered new exit (range 16) 1168 | -10/Materials | Entered another Materials area 1168 | -9/Materials | Evolved 2 slots: Power x1, Utility x1 2175 | -9/Materials | Build established: Hacker-Mutant 2246 | -9/Materials | Discovered new exit (range 12) 2747 | -9/Materials | Build established: Mutant 3398 | -9/Materials | Discovered new exit (range 7) 4149 | -9/Materials | Entered another Materials area 4149 | -8/Materials | Evolved 2 slots: Propulsion x1, Utility x1 4451 | -8/Materials | Build established: Hacker-Mutant 4960 | -8/Materials | Repaired Propulsion Shielding 4992 | -8/Materials | Repaired Autogun 5026 | -8/Materials | Repaired Imp. Ion Engine 5602 | -8/Materials | Garrison activated, responded to threat 5771 | -8/Materials | Identified exit to Garrison 6215 | -8/Materials | Repaired Imp. Ion Engine 6249 | -8/Materials | Repaired Autogun 7383 | -8/Materials | Repaired Lgt. Treads 7423 | -8/Materials | Repaired Hpw. Shotgun 7695 | -8/Materials | Build established: Scavenger-Mutant 7797 | -8/Materials | Discovered new exit (range 15) 8087 | -8/Materials | Build established: Hacker-Mutant 8105 | -8/Materials | Core integrity fell below 50% 9255 | -8/Materials | Discovered new exit (range 7) 9631 | -8/Materials | Discovered new exit (range 10) 10042 | -8/Materials | Entered Factory 10042 | -7/Factory | Evolved 2 slots: Power x1, Utility x1 10477 | -7/Factory | Lost 5 parts (1p2n1u1w) 10795 | -7/Factory | Discovered new exit (range 5) 11025 | -7/Factory | Entered Storage 11108 | -7/Storage | Found Prototype Launcher 11109 | -7/Storage | Identified Rocket Array 11226 | -7/Storage | Met 01-MTF 11606 | -7/Storage | Destroyed 01-MTF 11872 | -7/Storage | Garrison activated, responded to threat 11892 | -7/Storage | Crushed by falling debris 11926 | -7/Storage | Lost 3 parts (1p2w) 11929 | -7/Storage | Core integrity fell below 50% 11970 | -7/Storage | Core integrity fell below 20% 12003 | -7/Storage | Lost 6 parts (2p2n2u) 12004 | -7/Storage | Crushed by falling debris 12004 | -7/Storage | System corruption reached 10% 12018 | -7/Storage | Destroyed by Y-54 Guardian with Flak Gun Last Messages --------------- G-47 Trooper destroyed. W-25 Informer destroyed. K-01 Serf collects debris. System corrupted: Energy discharge (-19). K-01 Serf collects debris. Imp. Cesium-ion Thruster destroyed. Destroyed Lgt. Nuclear Core. K-01 Serf collects debris. Adv. Visual Processing Unit destroyed. K-01 Serf collects debris. System corrupted: Imp. Cesium-ion Thruster rejected. The unstable cave ceiling collapses. Crushed by falling debris. Imp. Targeting Computer destroyed. System corrupted by crushing effect (+2). Hacking Suite destroyed. System corrupted by crushing effect (+2). [Achievement: System Compromised] [Achievement: 5k Club] Map ----- +----------------------------------------------------+ | ??????????#"T"######/// | | ?????????# #^/ | | ????????? # / | | ?????????# # | | ?????????#"""" / % | | ?????????#"""" # | | ?????????#"""" ### ####### ### | | ?????????#"""" ### #######+### | | ?######??#= ### ### | | ?# ! ###""##"#######+### """" | | # """"### ! # " "" | | ?# Y""#?# # """ | | ?# """##?# """" """" # "" ][" | | ?# """ ###"### """" """" # "" =" | | ?? """ ?# + """" """" # """" | | ????""??# #### """" """" # % | | ????##/## #??# #####+### | | ???# ^ #??######+######## # | | ???# #### #?????## ^ # | | ????????# ######## ^ # | | ????????#Y ^ # | | ???????##/########## ####### # | | ???????# T######## ######## % ## | | ???????#" "##?######/######## ## | | ???????#[[[#??## # % ## | | ???????#[@[#??## ! # ## | | ???????#####??## ! + %## | | ??????????????## ! # %## | | ??????????????## ! ! !# ## | | ??????????????############### ## | | ??????????????############### !## | | ??????????????????????????### =%## | | ?????????????????????????? # # | | ?????????????????????????? + T | | ??????????????????????????## "" | | ??????????????????????????## | | ??????????????????????????## # | | ??????????????????????????######## | | ??????????????????????????######## | | ?????????????????????????????????# | | ?????????????????????????????????# | | ?????????????????????????????????# | | ?????????????????????????????????# | | ?????????????????????????????????# | | ?????????????????????????????????# | | ?????????????????????????????????# | | ?????????????????????????????????? | | ?????????????????????????????????? | | ?????????????????????????????????? | | ?????????????????????????????????? | +----------------------------------------------------+ Best States ------------- Heat Dissipation 34 Energy Generation 39 Energy Capacity 690 Matter Stores 300 Matter Capacity 300 Sight Range 20 Robot Scan Range 14 Terrain Scan Range 16 Terrain Scan Density 110 Armor Coverage 300 Resistance: KI 20 Resistance: TH 20 Resistance: EX 20 Resistance: EM 20 Resistance: I 20 Resistance: S 20 Resistance: P 20 Power Shielding 33 Propulsion Shielding 33 Evasion (%) 64 Targeting Accuracy 6 Recoil Reduction 3 Offensive Hacking 40 Item Schematics ----------------- Flight Unit | -8/Materials | Scanalyzed Imp. Treads | -8/Materials | Scanalyzed Hacking Suite | -8/Materials | Scanalyzed Cld. Ion Engine | -8/Materials | Scanalyzed Rocket Launcher | -8/Materials | Scanalyzed Robot Schematics ------------------ None Fabricated ------------ Nothing Alien Tech Used ----------------- None Achievements -------------- 5k Club Backstab Collateral Damage Everything Is Under Control Loot Pinata Made in Tau Ceti IV Maybe Next Time I'll Detach My Launcher Omniscient Cartographer One Hack Too Far Oops Part-time Excavator Remodeling Risk Taker Shopping List Storm Trooper System Compromised Troublemaker Uninvited Guest Challenges ------------ None Game ------ Seed CooledGlidesysWings Manual? 0 Play Time 02:21:45 Cumulative 3.2 hours Start 2024.04.02 @ 12:00:51 End 2024.04.02 @ 14:51:02 Sessions 1 Manual Loads 0 Difficulty Adventurer Special Mode None Game No. 2 Rogue 0 Adventurer 2 Explorer 0 Win Type - Total 0 Types 0/0/0/0/0/0/0/0/0 Lore% 1 Gallery% 5 Achievement% 8 Wizard Run 0 Options --------- Layout 1 ASCII 0 Keyboard 0 Movement Arrows Keybinds 0 Fullscreen 1 Font 24/Smallcaps Map View 50x35 Zoom Use 0% Tactical HUD 0 Map Filters NONE Filters NONE Steam 1 RUN: e75106eb-6414-449b-8bb7-33567152fd06